fUSD/lending_fUSD_20240729
["ID","MTS","AMOUNT","RATE_DAILY","PERIOD"]
[333507005,1722221446884,-500.0,0.00010958,2]
[333507006,1722221446893,-500.0,0.00010958,2]
[333507007,1722221446902,-531.04026091,0.00010958,2]
[333507008,1722221446911,-691.05,0.00010958,2]
[333507009,1722221446920,-500.0,0.00010958,2]
[333507010,1722221446930,-568.71929557,0.00010958,2]
[333507011,1722221446939,-364.74362293,0.00010958,2]
[333507012,1722221446949,-508.39455549,0.00010958,2]
[333507013,1722221446958,-374.64149759,0.00010958,2]
[333507014,1722221446967,-500.0,0.00010958,2]
[333507015,1722221446976,-500.0,0.00010958,2]
[333507016,1722221446986,-500.0,0.00010958,2]
[333507017,1722221446995,-500.0,0.00010958,2]
[333507018,1722221447004,-507.47982757,0.00010958,2]
[333507019,1722221447013,-500.0,0.00010958,2]
[333507020,1722221447022,-500.0,0.00010958,2]
[333507021,1722221447031,-500.0,0.00010958,2]
[333507022,1722221447040,-500.0,0.00010958,2]
[333507023,1722221447050,-500.0,0.00010958,2]
[333507024,1722221447059,-503.40659479,0.00010958,2]
[333507025,1722221447068,-500.0,0.00010958,2]
[333507026,1722221447077,-500.0,0.00010958,2]
[333507027,1722221447086,-500.0,0.00010958,2]
[333507028,1722221447095,-544.59474007,0.00010958,2]
[333507029,1722221447104,-500.0,0.00010958,2]
[333507030,1722221447113,-500.0,0.00010958,2]
[333507031,1722221447122,-500.0,0.00010958,2]
[333507032,1722221447131,-500.0,0.00010958,2]
[333507033,1722221447141,-500.0,0.00010958,2]
[333507034,1722221447150,-478.1847642,0.00010958,2]
[333507035,1722221447159,-500.0,0.00010958,2]
[333507036,1722221447168,-510.67043692,0.00010958,2]
[333507037,1722221447177,-500.0,0.00010958,2]
[333507038,1722221447186,-500.0,0.00010958,2]
[333507039,1722221447196,-500.0,0.00010958,2]
[333507040,1722221447205,-510.99538711,0.00010958,2]
[333507041,1722221447214,-500.0,0.00010958,2]
[333507042,1722221447223,-500.0,0.00010958,2]
[333507043,1722221447232,-500.0,0.00010958,2]
[333507044,1722221447241,-500.0,0.00010958,2]
[333507045,1722221447250,-500.0,0.00010958,2]
[333507046,1722221447259,-500.0,0.00010958,2]
[333507047,1722221447268,-500.0,0.00010958,2]
[333507048,1722221447277,-500.0,0.00010958,2]
[333507049,1722221447286,-500.0,0.00010958,2]
[333507050,1722221447295,-500.0,0.00010958,2]
[333507051,1722221447304,-500.0,0.00010958,2]
[333507052,1722221447313,-507.36322444,0.00010958,2]
[333507053,1722221447322,-500.0,0.00010958,2]
[333507054,1722221447330,-500.0,0.00010958,2]
[333507055,1722221447339,-500.0,0.00010958,2]
[333507056,1722221447348,-500.0,0.00010958,2]
[333507057,1722221447358,-500.0,0.00010958,2]
[333507058,1722221447366,-500.0,0.00010958,2]
[333507059,1722221447376,-500.0,0.00010958,2]
[333507060,1722221447385,-500.0,0.00010958,2]
[333507061,1722221447395,-500.0,0.00010958,2]
[333507062,1722221447405,-500.0,0.00010958,2]
[333507063,1722221447416,-307.44337146,0.00010958,2]
[333507064,1722221447425,-500.97608598,0.00010958,2]
[333507065,1722221447434,-500.0,0.00010958,2]
[333507066,1722221447443,-501.11241805,0.00010958,2]
[333507067,1722221447454,-500.0,0.00010958,2]
[333507068,1722221447463,-500.0,0.00010958,2]
[333507069,1722221447472,-500.0,0.00010958,2]
[333507070,1722221447484,-500.0,0.00010958,2]
[333507071,1722221447493,-500.0,0.00010958,2]
[333507072,1722221447503,-500.0,0.00010958,2]
[333507073,1722221447513,-500.0,0.00010958,2]
[333507074,1722221447522,-500.0,0.00010958,2]
[333507075,1722221447531,-503.23974343,0.00010958,2]
[333507076,1722221447542,-500.0,0.00010958,2]
[333507077,1722221447551,-500.0,0.00010958,2]
[333507078,1722221447561,-500.0,0.00010958,2]
[333507079,1722221447571,-505.19281921,0.00010958,2]
[333507080,1722221447580,-506.19427296,0.00010958,2]
[333507081,1722221447590,-500.0,0.00010958,2]
[333507082,1722221447599,-500.0,0.00010958,2]
[333507083,1722221447609,-500.0,0.00010958,2]
[333507084,1722221447618,-500.0,0.00010958,2]
[333507085,1722221447628,-500.0,0.00010958,2]
[333507086,1722221447637,-500.0,0.00010958,2]
[333507087,1722221447646,-500.0,0.00010958,2]
[333507088,1722221447656,-500.0,0.00010958,2]
[333507089,1722221447665,-500.0,0.00010958,2]
[333507090,1722221447674,-500.0,0.00010958,2]
[333507091,1722221447684,-500.0,0.00010958,2]
[333507092,1722221447693,-500.0,0.00010958,2]
[333507093,1722221447702,-500.0,0.00010958,2]
[333507094,1722221447711,-500.0,0.00010958,2]
[333507095,1722221447720,-500.0,0.00010958,2]
[333507096,1722221447729,-500.0,0.00010958,2]
[333507097,1722221447739,-500.0,0.00010958,2]
[333507098,1722221447748,-500.0,0.00010958,2]
[333507099,1722221447758,-500.0,0.00010958,2]
[333507100,1722221447768,-500.0,0.00010958,2]
[333507101,1722221447777,-509.98,0.00010958,2]
[333507102,1722221447787,-506.4871114,0.00010958,2]
[333507103,1722221447796,-500.0,0.00010958,2]
[333507104,1722221447805,-508.67116342,0.00010958,2]
[333507105,1722221447815,-500.0,0.00010958,2]
[333507106,1722221447824,-500.0,0.00010958,2]
[333507107,1722221447833,-500.0,0.00010958,2]
[333507108,1722221447842,-508.97889177,0.00010958,2]
[333507109,1722221447852,-500.0,0.00010958,2]
[333507110,1722221447862,-500.0,0.00010958,2]
[333507111,1722221447872,-502.18771602,0.00010958,2]
[333507112,1722221447882,-500.0,0.00010958,2]
[333507114,1722221447891,-500.0,0.00010958,2]
[333507115,1722221447900,-500.0,0.00010958,2]
[333507116,1722221447909,-500.0,0.00010958,2]
[333507117,1722221447919,-500.0,0.00010958,2]
[333507118,1722221447928,-500.0,0.00010958,2]
[333507119,1722221447937,-500.0,0.00010958,2]
[333507120,1722221447946,-500.0,0.00010958,2]
[333507121,1722221447955,-500.0,0.00010958,2]
[333507122,1722221447963,-535.33029951,0.00010958,2]
[333507123,1722221447973,-500.0,0.00010958,2]
[333507124,1722221447982,-500.0,0.00010958,2]
[333507125,1722221447992,-500.0,0.00010958,2]
[333507126,1722221448001,-500.0,0.00010958,2]
[333507127,1722221448010,-504.91386545,0.00010958,2]
[333507128,1722221448019,-500.0,0.00010958,2]
[333507129,1722221448028,-500.0,0.00010958,2]
[333507130,1722221448038,-500.0,0.00010958,2]
[333507131,1722221448047,-500.0,0.00010958,2]
[333507132,1722221448056,-500.0,0.00010958,2]
[333507133,1722221448065,-500.0,0.00010958,2]
[333507134,1722221448074,-500.0,0.00010958,2]
[333507135,1722221448083,-500.0,0.00010958,2]
[333507136,1722221448092,-500.0,0.00010958,2]
[333507137,1722221448101,-469.16833812,0.00010958,2]
[333507138,1722221448110,-500.0,0.00010958,2]
[333507139,1722221448120,-500.0,0.00010958,2]
[333507140,1722221448130,-500.0,0.00010958,2]
[333507141,1722221448139,-500.0,0.00010958,2]
[333507142,1722221448149,-500.0,0.00010958,2]
[333507143,1722221448158,-500.0,0.00010958,2]
[333507144,1722221448167,-500.0,0.00010958,2]
[333507145,1722221448177,-501.30186486,0.00010958,2]
[333507146,1722221448186,-500.0,0.00010958,2]
[333507147,1722221448196,-500.0,0.00010958,2]
[333507148,1722221448206,-500.0,0.00010958,2]
[333507149,1722221448215,-500.0,0.00010958,2]
[333507150,1722221448372,-500.0,0.00010958,2]
[333507151,1722221448383,-502.31912658,0.00010958,2]
[333507152,1722221448392,-500.0,0.00010958,2]
[333507153,1722221448403,-500.0,0.00010958,2]
[333507154,1722221448416,-515.36,0.00010958,2]
[333507155,1722221448425,-500.0,0.00010958,2]
[333507156,1722221448435,-501.89414219,0.00010958,2]
[333507157,1722221448446,-500.0,0.00010958,2]
[333507158,1722221448455,-500.0,0.00010958,2]
[333507159,1722221448465,-500.0,0.00010958,2]
[333507160,1722221448475,-500.0,0.00010958,2]
[333507161,1722221448485,-500.0,0.00010958,2]
[333507162,1722221448495,-500.0,0.00010958,2]
[333507163,1722221448504,-500.0,0.00010958,2]
[333507164,1722221448515,-500.0,0.00010958,2]
[333507165,1722221448525,-501.40851417,0.00010958,2]
[333507166,1722221448535,-500.0,0.00010958,2]
[333507167,1722221448544,-500.0,0.00010958,2]
[333507168,1722221448554,-500.0,0.00010958,2]
[333507169,1722221448564,-503.73211597,0.00010958,2]
[333507170,1722221448574,-500.0,0.00010958,2]
[333507171,1722221448583,-500.0,0.00010958,2]
[333507172,1722221448593,-406.88,0.00010958,2]
[333507173,1722221448602,-505.79350798,0.00010958,2]
[333507174,1722221448612,-500.0,0.00010958,2]
[333507176,1722221448621,-500.0,0.00010958,2]
[333507177,1722221448632,-512.39221444,0.00010958,2]
[333507180,1722221448641,-500.0,0.00010958,2]
[333507182,1722221448653,-500.0,0.00010958,2]
[333507184,1722221448662,-500.0,0.00010958,2]
[333507186,1722221448672,-500.0,0.00010958,2]
[333507188,1722221448681,-509.56888777,0.00010958,2]
[333507190,1722221448691,-500.0,0.00010958,2]
[333507192,1722221448700,-500.0,0.00010958,2]
[333507194,1722221448709,-500.0,0.00010958,2]
[333507196,1722221448719,-351.30330354,0.00010958,2]
[333507198,1722221448729,-500.0,0.00010958,2]
[333507200,1722221448739,-500.0,0.00010958,2]
[333507202,1722221448749,-500.0,0.00010958,2]
[333507204,1722221448759,-503.28774798,0.00010958,2]
[333507206,1722221448768,-520.58682019,0.00010958,2]
[333507208,1722221448778,-500.0,0.00010958,2]
[333507210,1722221448787,-500.0,0.00010958,2]
[333507211,1722221448797,-500.0,0.00010958,2]
[333507212,1722221448807,-500.0,0.00010958,2]
[333507213,1722221448816,-506.85214267,0.00010958,2]
[333507214,1722221448826,-500.0,0.00010958,2]
[333507215,1722221448835,-500.0,0.00010958,2]
[333507216,1722221448847,-501.79780594,0.00010958,2]
[333507217,1722221448856,-511.80547534,0.00010958,2]
[333507218,1722221448866,-514.31420188,0.00010958,2]
[333507219,1722221448876,-515.93756666,0.00010958,2]
[333507220,1722221448886,-500.0,0.00010958,2]
[333507221,1722221448895,-583.52279969,0.00010958,2]
[333507222,1722221448905,-508.02129426,0.00010958,2]
[333507223,1722221448915,-500.0,0.00010958,2]
[333507224,1722221448925,-501.46411013,0.00010958,2]
[333507225,1722221448934,-500.0,0.00010958,2]
[333507226,1722221448944,-501.47726539,0.00010958,2]
[333507227,1722221448954,-514.78574391,0.00010958,2]
[333507228,1722221448964,-500.0,0.00010958,2]
[333507229,1722221448973,-512.08174153,0.00010958,2]
[333507230,1722221448983,-500.0,0.00010958,2]
[333507231,1722221448993,-501.97416892,0.00010958,2]
[333507232,1722221449002,-500.0,0.00010958,2]
[333507233,1722221449012,-468.00108672,0.00010958,2]
[333507234,1722221449021,-500.0,0.00010958,2]
[333507235,1722221449031,-500.0,0.00010958,2]
[333507236,1722221449041,-502.01092658,0.00010958,2]
[333507237,1722221449051,-500.0,0.00010958,2]
[333507238,1722221449060,-500.0,0.00010958,2]
[333507239,1722221449070,-504.23464758,0.00010958,2]
[333507240,1722221449079,-500.0,0.00010958,2]
[333507241,1722221449089,-500.0,0.00010958,2]
[333507242,1722221449098,-500.0,0.00010958,2]
[333507243,1722221449108,-500.0,0.00010958,2]
[333507244,1722221449117,-502.0972602,0.00010958,2]
[333507245,1722221449128,-500.0,0.00010958,2]
[333507246,1722221449137,-500.0,0.00010958,2]
[333507247,1722221449146,-500.0,0.00010958,2]
[333507248,1722221449156,-502.31981413,0.00010958,2]
[333507249,1722221449165,-539.04633286,0.00010958,2]
[333507250,1722221449174,-500.0,0.00010958,2]
[333507251,1722221449183,-517.87513198,0.00010958,2]
[333507252,1722221449193,-497.48922285,0.00010958,2]
[333507253,1722221449202,-500.0,0.00010958,2]
[333507254,1722221449212,-514.99933441,0.00010958,2]
[333507255,1722221449222,-500.0,0.00010958,2]
[333507256,1722221449231,-513.84177448,0.00010958,2]
[333507257,1722221449241,-500.0,0.00010958,2]
[333507258,1722221449250,-500.0,0.00010958,2]
[333507259,1722221449260,-500.0,0.00010958,2]
[333507260,1722221449269,-500.0,0.00010958,2]
[333507261,1722221449279,-504.07914871,0.00010958,2]
[333507262,1722221449288,-500.0,0.00010958,2]
[333507263,1722221449298,-506.18346458,0.00010958,2]
[333507264,1722221449307,-500.0,0.00010958,2]
[333507265,1722221449318,-177.04341343,0.00010958,2]
[333507266,1722221449327,-500.0,0.00010958,2]
[333507267,1722221449337,-500.31786095,0.00010958,2]
[333507268,1722221449347,-500.0,0.00010958,2]
[333507269,1722221449357,-500.0,0.00010958,2]
[333507270,1722221449366,-500.0,0.00010958,2]
[333507271,1722221449378,-505.9949589,0.00010958,2]
[333507272,1722221449387,-500.0,0.00010958,2]
[333507273,1722221449398,-500.0,0.00010958,2]
[333507274,1722221449410,-649.97258698,0.00010958,2]
[333507275,1722221449420,-500.0,0.00010958,2]
[333507276,1722221449430,-528.03945282,0.00010958,2]
[333507277,1722221449439,-506.15214404,0.00010958,2]
[333507278,1722221449450,-518.66365399,0.00010958,2]
[333507279,1722221449460,-500.0,0.00010958,2]
[333507280,1722221449470,-506.99511014,0.00010958,2]
[333507281,1722221449480,-513.11370377,0.00010958,2]
[333507282,1722221449493,-508.11575475,0.00010958,2]
[333507283,1722221449503,-500.0,0.00010958,2]
[333507284,1722221449513,-500.0,0.00010958,2]
[333507285,1722221449523,-500.0,0.00010958,2]
[333507286,1722221449534,-500.0,0.00010958,2]
[333507287,1722221449544,-504.96295324,0.00010958,2]
[333507288,1722221449555,-447.87845595,0.00010958,2]
[333507289,1722221449565,-500.0,0.00010958,2]
[333507290,1722221449575,-500.0,0.00010958,2]
[333507291,1722221449585,-502.60386739,0.00010958,2]
[333507292,1722221449596,-508.98312762,0.00010958,2]
[333507293,1722221449606,-500.0,0.00010958,2]
[333507294,1722221449618,-515.6972098,0.00010958,2]
[333507295,1722221449629,-504.71336533,0.00010958,2]
[333507296,1722221449640,-500.0,0.00010958,2]
[333507297,1722221449651,-524.28943595,0.00010958,2]
[333507298,1722221449661,-278.61827764,0.00010958,2]
[333507299,1722221449671,-513.0963947,0.00010958,2]
[333507300,1722221449681,-509.97000024,0.00010958,2]
[333507301,1722221449691,-500.0,0.00010958,2]
[333507302,1722221449700,-500.0,0.00010958,2]
[333507303,1722221449710,-500.0,0.00010958,2]
[333507304,1722221449720,-500.0,0.00010958,2]
[333507305,1722221449729,-500.0,0.00010958,2]
[333507306,1722221449739,-500.0,0.00010958,2]
[333507307,1722221449748,-521.18373909,0.00010958,2]
[333507308,1722221449758,-500.0,0.00010958,2]
[333507309,1722221449767,-506.36503713,0.00010958,2]
[333507310,1722221449777,-520.19485367,0.00010958,2]
[333507311,1722221449786,-500.0,0.00010958,2]
[333507312,1722221449795,-500.0,0.00010958,2]
[333507313,1722221449805,-500.0,0.00010958,2]
[333507314,1722221449815,-500.0,0.00010958,2]
[333507315,1722221449824,-514.41444111,0.00010958,2]
[333507316,1722221449833,-512.77847971,0.00010958,2]
[333507317,1722221449843,-500.0,0.00010958,2]
[333507318,1722221449853,-554.45195712,0.00010958,2]
[333507319,1722221449862,-504.14139417,0.00010958,2]
[333507320,1722221449871,-531.77319445,0.00010958,2]
[333507321,1722221449881,-500.0,0.00010958,2]
[333507322,1722221449891,-500.0,0.00010958,2]
[333507323,1722221449900,-589.19263965,0.00010958,2]
[333507324,1722221449909,-500.0,0.00010958,2]
[333507325,1722221449919,-500.0,0.00010958,2]
[333507326,1722221449928,-500.0,0.00010958,2]
[333507327,1722221449938,-500.0,0.00010958,2]
[333507328,1722221449947,-500.0,0.00010958,2]
[333507329,1722221449956,-500.0,0.00010958,2]
[333507330,1722221449965,-303.24294818,0.00010958,2]
[333507331,1722221449974,-511.8811246,0.00010958,2]
[333507332,1722221449983,-500.0,0.00010958,2]
[333507333,1722221449992,-500.0,0.00010958,2]
[333507334,1722221450001,-500.0,0.00010958,2]
[333507335,1722221450011,-327.0137964,0.00010958,2]
[333507336,1722221450020,-512.73459626,0.00010958,2]
[333507337,1722221450029,-500.0,0.00010958,2]
[333507338,1722221450038,-519.22327841,0.00010958,2]
[333507339,1722221450048,-500.0,0.00010958,2]
[333507340,1722221450057,-500.0,0.00010958,2]
[333507341,1722221450069,-500.0,0.00010958,2]
[333507342,1722221450079,-500.0,0.00010958,2]
[333507343,1722221450088,-500.0,0.00010958,2]
[333507344,1722221450098,-508.93151467,0.00010958,2]
[333507345,1722221450107,-500.0,0.00010958,2]
[333507346,1722221450117,-500.0,0.00010958,2]
[333507347,1722221450127,-500.0,0.00010958,2]
[333507348,1722221450136,-435.21619095,0.00010958,2]
[333507349,1722221450148,-506.50506989,0.00010958,2]
[333507350,1722221450157,-504.62787858,0.00010958,2]
[333507351,1722221450167,-500.0,0.00010958,2]
[333507352,1722221450177,-500.0,0.00010958,2]
[333507353,1722221450186,-504.49864411,0.00010958,2]
[333507354,1722221450196,-500.0,0.00010958,2]
[333507355,1722221450205,-503.36528295,0.00010958,2]
[333507356,1722221450214,-522.03808986,0.00010958,2]
[333507357,1722221450223,-195.41549714,0.00010958,2]
[333507358,1722221450233,-503.27699074,0.00010958,2]
[333507359,1722221450242,-577.63785576,0.00010958,2]
[333507360,1722221450251,-500.0,0.00010958,2]
[333507361,1722221450260,-500.0,0.00010958,2]
[333507362,1722221450269,-376.83471538,0.00010958,2]
[333507363,1722221450278,-514.8194749,0.00010958,2]
[333507364,1722221450287,-327.85355201,0.00010958,2]
[333507365,1722221450297,-500.0,0.00010958,2]
[333507366,1722221450306,-503.96829018,0.00010958,2]
[333507367,1722221450317,-510.07861129,0.00010958,2]
[333507368,1722221450327,-500.0,0.00010958,2]
[333507369,1722221450337,-500.0,0.00010958,2]
[333507370,1722221450346,-568.54208938,0.00010958,2]
[333507371,1722221450356,-500.0,0.00010958,2]
[333507372,1722221450365,-500.0,0.00010958,2]
[333507373,1722221450376,-509.21304656,0.00010958,2]
[333507374,1722221450385,-501.94695969,0.00010958,2]
[333507375,1722221450395,-500.0,0.00010958,2]
[333507376,1722221450407,-501.77005488,0.00010958,2]
[333507377,1722221450418,-500.0,0.00010958,2]
[333507378,1722221450428,-505.53292212,0.00010958,2]
[333507379,1722221450438,-506.10079673,0.00010958,2]
[333507380,1722221450449,-500.0,0.00010958,2]
[333507381,1722221450459,-500.0,0.00010958,2]
[333507382,1722221450470,-505.83558412,0.00010958,2]
[333507383,1722221450482,-500.0,0.00010958,2]
[333507384,1722221450493,-500.0,0.00010958,2]
[333507385,1722221450503,-500.0,0.00010958,2]
[333507386,1722221450513,-502.06580913,0.00010958,2]
[333507387,1722221450523,-493.12385969,0.00010958,2]
[333507388,1722221450533,-506.83845597,0.00010958,2]
[333507389,1722221450543,-500.0,0.00010958,2]
[333507390,1722221450553,-501.50947059,0.00010958,2]
[333507391,1722221450563,-500.0,0.00010958,2]
[333507392,1722221450573,-500.0,0.00010958,2]
[333507393,1722221450583,-500.0,0.00010958,2]
[333507394,1722221450593,-500.0,0.00010958,2]
[333507395,1722221450603,-509.07139082,0.00010958,2]
[333507396,1722221450613,-506.03096462,0.00010958,2]
[333507397,1722221450623,-500.0,0.00010958,2]
[333507398,1722221450636,-510.47988483,0.00010958,2]
[333507399,1722221450646,-512.60869059,0.00010958,2]
[333507400,1722221450656,-508.7992677,0.00010958,2]
[333507401,1722221450666,-500.0,0.00010958,2]
[333507402,1722221450676,-500.0,0.00010958,2]
[333507403,1722221450686,-503.79432385,0.00010958,2]
[333507404,1722221450696,-511.12500179,0.00010958,2]
[333507405,1722221450706,-500.0,0.00010958,2]
[333507406,1722221450716,-506.25840872,0.00010958,2]
[333507407,1722221450726,-500.0,0.00010958,2]
[333507408,1722221450735,-505.92896443,0.00010958,2]
[333507409,1722221450745,-510.1551918,0.00010958,2]
[333507410,1722221450755,-506.76911262,0.00010958,2]
[333507411,1722221450765,-582.20794415,0.00010958,2]
[333507412,1722221450774,-501.56389625,0.00010958,2]
[333507413,1722221450784,-515.64006605,0.00010958,2]
[333507414,1722221450793,-518.16786448,0.00010958,2]
[333507415,1722221450802,-517.44956855,0.00010958,2]
[333507416,1722221450812,-500.0,0.00010958,2]
[333507417,1722221450821,-623.6280373,0.00010958,2]
[333507418,1722221450830,-505.77426274,0.00010958,2]
[333507419,1722221450839,-508.66282765,0.00010958,2]
[333507420,1722221450849,-500.0,0.00010958,2]
[333507421,1722221450858,-501.73036877,0.00010958,2]
[333507422,1722221450867,-500.0,0.00010958,2]
[333507423,1722221450879,-500.0,0.00010958,2]
[333507424,1722221450889,-637.05495941,0.00010958,2]
[333507425,1722221450899,-607.87668906,0.00010958,2]
[333507426,1722221450908,-482.13500964,0.00010958,2]
[333507427,1722221450918,-507.35695285,0.00010958,2]
[333507428,1722221450927,-516.50867601,0.00010958,2]
[333507429,1722221450936,-514.31376338,0.00010958,2]
[333507430,1722221451087,-547.10313337,0.00010958,2]
[333507431,1722221451096,-500.0,0.00010958,2]
[333507432,1722221451105,-500.0,0.00010958,2]
[333507433,1722221451114,-515.51069689,0.00010958,2]
[333507434,1722221451123,-503.53857598,0.00010958,2]
[333507435,1722221451132,-514.43979016,0.00010958,2]
[333507436,1722221451141,-516.87478931,0.00010958,2]
[333507437,1722221451151,-507.26970034,0.00010958,2]
[333507438,1722221451160,-514.52127215,0.00010958,2]
[333507439,1722221451169,-509.75191585,0.00010958,2]
[333507440,1722221451178,-502.08558768,0.00010958,2]
[333507441,1722221451187,-530.36338689,0.00010958,2]
[333507442,1722221451197,-500.0,0.00010958,2]
[333507443,1722221451206,-506.95271852,0.00010958,2]
[333507444,1722221451215,-504.66295718,0.00010958,2]
[333507445,1722221451224,-508.28715395,0.00010958,2]
[333507446,1722221451233,-508.29002528,0.00010958,2]
[333507447,1722221451243,-500.0,0.00010958,2]
[333507448,1722221451252,-507.88673967,0.00010958,2]
[333507449,1722221451261,-509.2556886,0.00010958,2]
[333507450,1722221451270,-398.13290614,0.00010958,2]
[333507451,1722221451279,-504.11001633,0.00010958,2]
[333507452,1722221451288,-504.13488635,0.00010958,2]
[333507453,1722221451297,-505.02090906,0.00010958,2]
[333507454,1722221451307,-500.0,0.00010958,2]
[333507455,1722221451316,-507.66335342,0.00010958,2]
[333507456,1722221451325,-514.45006816,0.00010958,2]
[333507457,1722221451334,-526.21579166,0.00010958,2]
[333507458,1722221451343,-521.70276349,0.00010958,2]
[333507459,1722221451352,-500.0,0.00010958,2]
[333507460,1722221451361,-504.90900883,0.00010958,2]
[333507461,1722221451370,-508.50739572,0.00010958,2]
[333507462,1722221451380,-503.93673008,0.00010958,2]
[333507463,1722221451389,-504.3210332,0.00010958,2]
[333507464,1722221451399,-516.27038653,0.00010958,2]
[333507465,1722221451412,-501.69029946,0.00010958,2]
[333507466,1722221451422,-507.75226354,0.00010958,2]
[333507467,1722221451431,-515.09634599,0.00010958,2]
[333507468,1722221451440,-511.91916653,0.00010958,2]
[333507469,1722221451450,-542.81040095,0.00010958,2]
[333507470,1722221451460,-502.33026663,0.00010958,2]
[333507471,1722221451469,-506.2450497,0.00010958,2]
[333507472,1722221451480,-525.04565998,0.00010958,2]
[333507473,1722221451489,-508.76167666,0.00010958,2]
[333507474,1722221451498,-509.76187241,0.00010958,2]
[333507475,1722221451507,-505.04877331,0.00010958,2]
[333507476,1722221451516,-508.20431313,0.00010958,2]
[333507477,1722221451525,-509.93062972,0.00010958,2]
[333507478,1722221451534,-500.95669971,0.00010958,2]
[333507479,1722221451543,-502.77700858,0.00010958,2]
[333507480,1722221451552,-551.21108972,0.00010958,2]
[333507481,1722221451562,-542.83212756,0.00010958,2]
[333507482,1722221451571,-506.68227801,0.00010958,2]
[333507483,1722221451581,-507.76570665,0.00010958,2]
[333507484,1722221451590,-507.81138313,0.00010958,2]
[333507485,1722221451599,-510.92700554,0.00010958,2]
[333507486,1722221451608,-517.12971399,0.00010958,2]
[333507487,1722221451617,-500.0,0.00010958,2]
[333507488,1722221451627,-505.32199588,0.00010958,2]
[333507489,1722221451636,-509.87936062,0.00010958,2]
[333507490,1722221451646,-501.51078817,0.00010958,2]
[333507491,1722221451655,-500.0,0.00010958,2]
[333507492,1722221451664,-507.02649767,0.00010958,2]
[333507493,1722221451673,-557.70239648,0.00010958,2]
[333507494,1722221451682,-501.24898619,0.00010958,2]
[333507495,1722221451692,-503.45645267,0.00010958,2]
[333507496,1722221451701,-522.47471091,0.00010958,2]
[333507497,1722221451710,-511.86813295,0.00010958,2]
[333507498,1722221451719,-515.16432816,0.00010958,2]
[333507499,1722221451729,-514.24020922,0.00010958,2]
[333507500,1722221451738,-500.0,0.00010958,2]
[333507501,1722221451748,-560.96845339,0.00010958,2]
[333507502,1722221451757,-503.41027814,0.00010958,2]
[333507503,1722221451767,-504.74414883,0.00010958,2]
[333507504,1722221451776,-503.72944992,0.00010958,2]
[333507505,1722221451785,-546.02221023,0.00010958,2]
[333507506,1722221451795,-508.95446561,0.00010958,2]
[333507507,1722221451804,-517.72787353,0.00010958,2]
[333507508,1722221451813,-501.32418635,0.00010958,2]
[333507509,1722221451822,-538.20560123,0.00010958,2]
[333507510,1722221451831,-510.44353004,0.00010958,2]
[333507511,1722221451841,-514.97893612,0.00010958,2]
[333507512,1722221451850,-500.90413312,0.00010958,2]
[333507513,1722221451859,-625.29979693,0.00010958,2]
[333507514,1722221451868,-551.58412811,0.00010958,2]
[333507515,1722221451879,-511.04429327,0.00010958,2]
[333507516,1722221451888,-501.35968477,0.00010958,2]
[333507517,1722221451897,-505.48679445,0.00010958,2]
[333507518,1722221451909,-511.02563737,0.00010958,2]
[333507519,1722221451918,-504.39010234,0.00010958,2]
[333507520,1722221451927,-534.34360129,0.00010958,2]
[333507521,1722221451937,-523.34952978,0.00010958,2]
[333507522,1722221451946,-256.22877166,0.00010958,2]
[333507523,1722221451955,-517.85538909,0.00010958,2]